[Event "Late-Titled-Tuesday-Blitz-March-26-2024"]
[Site "Chess.com"]
[Date "2024.03.26"]
[Round "2"]
[White "wild3000"]
[Black "dianamirza"]
[Result "1-0"]
[WhiteElo "2426"]
[BlackElo "1979"]
[TimeControl "180+1"]
[EndTime "14:15:06 PDT"]
[Termination "wild3000 won by resignation"]

1. a3 {[%clk 0:03:00.9]} 1... e5 {[%clk 0:02:56.2]} 2. e3 {[%clk 0:03:00.7]}
2... d5 {[%clk 0:02:56.3]} 3. b4 {[%clk 0:03:00.6]} 3... f5 {[%clk 0:02:55.8]}
4. Bb2 {[%clk 0:03:01]} 4... Bd6 {[%clk 0:02:53.8]} 5. c4 {[%clk 0:03:01.2]}
5... c6 {[%clk 0:02:51.3]} 6. Nf3 {[%clk 0:03:01.3]} 6... Qe7 {[%clk 0:02:43.1]}
7. d4 {[%clk 0:03:00]} 7... e4 {[%clk 0:02:42.7]} 8. Ne5 {[%clk 0:03:00.1]} 8...
Nf6 {[%clk 0:02:38]} 9. Nd2 {[%clk 0:02:49]} 9... Nbd7 {[%clk 0:02:37.7]} 10.
Nxd7 {[%clk 0:02:46.2]} 10... Bxd7 {[%clk 0:02:37.9]} 11. Nb3 {[%clk 0:02:46]}
11... O-O {[%clk 0:02:36.9]} 12. g3 {[%clk 0:02:45.3]} 12... f4 {[%clk
0:02:20.4]} 13. gxf4 {[%clk 0:02:42.6]} 13... Bg4 {[%clk 0:02:20.1]} 14. Be2
{[%clk 0:02:41]} 14... Bh3 {[%clk 0:02:15.7]} 15. Rg1 {[%clk 0:02:39.7]} 15...
Kh8 {[%clk 0:02:15.4]} 16. Nc5 {[%clk 0:02:37.2]} 16... b6 {[%clk 0:02:09.4]}
17. cxd5 {[%clk 0:02:35.1]} 17... bxc5 {[%clk 0:02:01.9]} 18. dxc5 {[%clk
0:02:34.8]} 18... Bb8 {[%clk 0:01:56.5]} 19. d6 {[%clk 0:02:33.3]} 19... Qe6
{[%clk 0:01:51.6]} 20. Qd4 {[%clk 0:02:32]} 20... Qd5 {[%clk 0:01:44.6]} 21.
Qxd5 {[%clk 0:02:29.1]} 21... Nxd5 {[%clk 0:01:45.5]} 22. Bxg7+ {[%clk
0:02:27.8]} 22... Kg8 {[%clk 0:01:44.3]} 23. Be5+ {[%clk 0:02:19.2]} 23... Kf7
{[%clk 0:01:43.6]} 24. Rg7+ {[%clk 0:02:17.4]} 24... Ke6 {[%clk 0:01:34.3]} 25.
Rxh7 {[%clk 0:02:17.4]} 1-0

[Event "Late-Titled-Tuesday-Blitz-March-26-2024"]
[Site "Chess.com"]
[Date "2024.03.26"]
[Round "2"]
[White "GlavkonVVS"]
[Black "xxysoul6"]
[Result "0-1"]
[WhiteElo "2645"]
[BlackElo "3015"]
[TimeControl "180+1"]
[EndTime "14:15:11 PDT"]
[Termination "xxysoul6 won by resignation"]

1. c4 {[%clk 0:03:00.9]} 1... Nf6 {[%clk 0:03:00.1]} 2. Nc3 {[%clk 0:03:00.3]}
2... g6 {[%clk 0:03:00.7]} 3. g3 {[%clk 0:03:00.5]} 3... Bg7 {[%clk 0:02:57.6]}
4. Bg2 {[%clk 0:03:01.1]} 4... O-O {[%clk 0:02:57.6]} 5. Nf3 {[%clk 0:03:01.6]}
5... d6 {[%clk 0:02:56.6]} 6. d3 {[%clk 0:03:01.1]} 6... e5 {[%clk 0:02:56.3]}
7. Rb1 {[%clk 0:03:01]} 7... a5 {[%clk 0:02:55.8]} 8. a3 {[%clk 0:03:00.8]} 8...
c6 {[%clk 0:02:56.1]} 9. b4 {[%clk 0:03:00.3]} 9... axb4 {[%clk 0:02:57]} 10.
axb4 {[%clk 0:03:00.9]} 10... Bf5 {[%clk 0:02:57.6]} 11. O-O {[%clk 0:02:57.9]}
11... Re8 {[%clk 0:02:56.7]} 12. b5 {[%clk 0:02:57.4]} 12... Qc8 {[%clk
0:02:52.3]} 13. bxc6 {[%clk 0:02:56.6]} 13... bxc6 {[%clk 0:02:52]} 14. Na4
{[%clk 0:02:47.4]} 14... Nbd7 {[%clk 0:02:50.6]} 15. Nh4 {[%clk 0:02:38]} 15...
Be6 {[%clk 0:02:47.4]} 16. Nb6 {[%clk 0:02:26.9]} 16... Nxb6 {[%clk 0:02:46.9]}
17. Rxb6 {[%clk 0:02:27.4]} 17... d5 {[%clk 0:02:47.4]} 18. cxd5 {[%clk
0:02:22.8]} 18... cxd5 {[%clk 0:02:48.3]} 19. Bg5 {[%clk 0:02:19]} 19... e4
{[%clk 0:02:38.9]} 20. Bxf6 {[%clk 0:02:02]} 20... Bxf6 {[%clk 0:02:39.8]} 21.
dxe4 {[%clk 0:02:02.2]} 21... dxe4 {[%clk 0:02:38.2]} 22. Bxe4 {[%clk
0:01:54.8]} 22... Ra1 {[%clk 0:02:31.4]} 23. Qd3 {[%clk 0:01:28.8]} 23... Rxf1+
{[%clk 0:02:25.2]} 24. Kxf1 {[%clk 0:01:28.4]} 24... Bh3+ {[%clk 0:02:25.7]} 0-1

[Event "Late-Titled-Tuesday-Blitz-March-26-2024"]
[Site "Chess.com"]
[Date "2024.03.26"]
[Round "2"]
[White "emeli_chess"]
[Black "NovakCabarkapa"]
[Result "0-1"]
[WhiteElo "2417"]
[BlackElo "2754"]
[TimeControl "180+1"]
[EndTime "14:15:23 PDT"]
[Termination "NovakCabarkapa won by resignation"]

1. d4 {[%clk 0:03:00.9]} 1... Nf6 {[%clk 0:02:57.4]} 2. c4 {[%clk 0:03:00.9]}
2... g6 {[%clk 0:02:57.6]} 3. Nc3 {[%clk 0:03:01]} 3... Bg7 {[%clk 0:02:58.3]}
4. e4 {[%clk 0:03:01.3]} 4... O-O {[%clk 0:02:59]} 5. Be3 {[%clk 0:03:01]} 5...
c6 {[%clk 0:02:58.4]} 6. e5 {[%clk 0:02:56.1]} 6... Ne8 {[%clk 0:02:58.4]} 7. f4
{[%clk 0:02:56]} 7... d6 {[%clk 0:02:59.1]} 8. Nf3 {[%clk 0:02:55.6]} 8... Bg4
{[%clk 0:02:58.9]} 9. Be2 {[%clk 0:02:54.6]} 9... f6 {[%clk 0:02:57.1]} 10. exd6
{[%clk 0:02:37.8]} 10... Nxd6 {[%clk 0:02:56.6]} 11. O-O {[%clk 0:02:35.1]}
11... Nd7 {[%clk 0:02:54.5]} 12. b3 {[%clk 0:02:29.3]} 12... Nf5 {[%clk
0:02:43.6]} 13. Bf2 {[%clk 0:02:23]} 13... e5 {[%clk 0:02:39.7]} 14. fxe5 {[%clk
0:02:00.2]} 14... Bxf3 {[%clk 0:02:33.3]} 15. Bxf3 {[%clk 0:01:58.1]} 15... fxe5
{[%clk 0:02:33.7]} 16. d5 {[%clk 0:01:47.5]} 16... Nd4 {[%clk 0:02:31.8]} 17.
Be4 {[%clk 0:01:31.9]} 17... Nc5 {[%clk 0:02:25.6]} 18. dxc6 {[%clk 0:01:28.1]}
18... bxc6 {[%clk 0:02:16.3]} 19. Qg4 {[%clk 0:01:15.8]} 19... Rf4 {[%clk
0:02:10]} 20. Bxd4 {[%clk 0:01:08.2]} 20... Qxd4+ {[%clk 0:02:04.3]} 0-1

[Event "Late-Titled-Tuesday-Blitz-March-26-2024"]
[Site "Chess.com"]
[Date "2024.03.26"]
[Round "2"]
[White "OparinGrigoriy"]
[Black "CFalcons8"]
[Result "1-0"]
[WhiteElo "2977"]
[BlackElo "2400"]
[TimeControl "180+1"]
[EndTime "14:15:24 PDT"]
[Termination "OparinGrigoriy won by resignation"]

1. Nc3 {[%clk 0:03:00.9]} 1... d5 {[%clk 0:02:58.6]} 2. e4 {[%clk 0:03:01.4]}
2... dxe4 {[%clk 0:02:56]} 3. Nxe4 {[%clk 0:03:01.7]} 3... Bf5 {[%clk 0:02:56]}
4. Ng3 {[%clk 0:03:01.8]} 4... Bg6 {[%clk 0:02:56.3]} 5. h4 {[%clk 0:02:59.5]}
5... h5 {[%clk 0:02:53]} 6. Nf3 {[%clk 0:02:56.7]} 6... Nd7 {[%clk 0:02:49.6]}
7. Bc4 {[%clk 0:02:56.8]} 7... e6 {[%clk 0:02:49.7]} 8. d3 {[%clk 0:02:56.6]}
8... Bd6 {[%clk 0:02:48.3]} 9. Qe2 {[%clk 0:02:55.7]} 9... Bxg3 {[%clk
0:02:47.4]} 10. fxg3 {[%clk 0:02:55.8]} 10... Ngf6 {[%clk 0:02:48.3]} 11. Bd2
{[%clk 0:02:54.7]} 11... Nb6 {[%clk 0:02:45.8]} 12. Bb3 {[%clk 0:02:54.1]} 12...
Qd6 {[%clk 0:02:36.7]} 13. O-O-O {[%clk 0:02:47.6]} 13... Qxg3 {[%clk
0:02:33.2]} 14. Ne5 {[%clk 0:02:45.9]} 14... Bf5 {[%clk 0:02:29.4]} 15. Rdf1
{[%clk 0:02:43.1]} 15... O-O {[%clk 0:02:26.8]} 16. Bf4 {[%clk 0:02:41.9]} 16...
Qxf4+ {[%clk 0:02:21.5]} 17. Rxf4 {[%clk 0:02:36.4]} 17... Nbd5 {[%clk
0:02:22.4]} 18. Rf2 {[%clk 0:02:33.9]} 18... g6 {[%clk 0:02:15.2]} 19. Rhf1
{[%clk 0:02:32.4]} 19... Ng4 {[%clk 0:02:13.1]} 20. Nxg4 {[%clk 0:02:30.8]}
20... Bxg4 {[%clk 0:02:14]} 21. Qe5 {[%clk 0:02:31.2]} 21... Ne7 {[%clk
0:02:11.8]} 22. Qxc7 {[%clk 0:02:29.5]} 22... Nf5 {[%clk 0:02:09.9]} 23. Qxb7
{[%clk 0:02:28.7]} 23... a5 {[%clk 0:02:09]} 24. Rxf5 {[%clk 0:02:26.1]} 24...
Bxf5 {[%clk 0:02:05.2]} 25. a4 {[%clk 0:02:20.7]} 25... Rfc8 {[%clk 0:02:03.3]}
26. Kb1 {[%clk 0:02:18.8]} 26... Rab8 {[%clk 0:02:00.4]} 27. Qa6 {[%clk
0:02:16.8]} 27... Ra8 {[%clk 0:01:58.8]} 28. Qd6 {[%clk 0:02:16.2]} 28... Rd8
{[%clk 0:01:56.6]} 29. Qe5 {[%clk 0:02:15.7]} 29... Rab8 {[%clk 0:01:48.6]} 30.
Rxf5 {[%clk 0:02:10.3]} 30... exf5 {[%clk 0:01:47.2]} 31. Qf6 {[%clk 0:02:11]}
31... Rd7 {[%clk 0:01:44.1]} 32. Qxg6+ {[%clk 0:02:10.4]} 32... Kf8 {[%clk
0:01:44.3]} 33. Qxf5 {[%clk 0:02:09.9]} 33... Re7 {[%clk 0:01:44.2]} 34. Qxh5
{[%clk 0:02:07]} 34... Re1+ {[%clk 0:01:44.7]} 35. Ka2 {[%clk 0:02:07.1]} 35...
Rb7 {[%clk 0:01:44.7]} 36. Qxa5 {[%clk 0:02:07.1]} 1-0

[Event "Late-Titled-Tuesday-Blitz-March-26-2024"]
[Site "Chess.com"]
[Date "2024.03.26"]
[Round "2"]
[White "RuperezA"]
[Black "Sanyura"]
[Result "1-0"]
[WhiteElo "2452"]
[BlackElo "2575"]
[TimeControl "180+1"]
[EndTime "14:15:30 PDT"]
[Termination "RuperezA won by resignation"]

1. Nf3 {[%clk 0:02:53.1]} 1... Nf6 {[%clk 0:02:53.3]} 2. c4 {[%clk 0:02:50.5]}
2... g6 {[%clk 0:02:53.8]} 3. d4 {[%clk 0:02:50.2]} 3... d6 {[%clk 0:02:54.7]}
4. Nc3 {[%clk 0:02:50.6]} 4... Bg7 {[%clk 0:02:55.3]} 5. e4 {[%clk 0:02:51.3]}
5... O-O {[%clk 0:02:55.9]} 6. Be2 {[%clk 0:02:51.1]} 6... e5 {[%clk 0:02:56.5]}
7. dxe5 {[%clk 0:02:51.8]} 7... dxe5 {[%clk 0:02:57.4]} 8. Qxd8 {[%clk
0:02:51.9]} 8... Rxd8 {[%clk 0:02:58]} 9. Bg5 {[%clk 0:02:52.6]} 9... Re8 {[%clk
0:02:57.7]} 10. Nd5 {[%clk 0:02:52.6]} 10... Nxd5 {[%clk 0:02:57.5]} 11. cxd5
{[%clk 0:02:53.5]} 11... c6 {[%clk 0:02:58]} 12. Bc4 {[%clk 0:02:54.1]} 12... b5
{[%clk 0:02:58.7]} 13. Bb3 {[%clk 0:02:53.3]} 13... a5 {[%clk 0:02:59.6]} 14. a4
{[%clk 0:02:52.5]} 14... Bb7 {[%clk 0:02:53.2]} 15. O-O {[%clk 0:02:48.9]} 15...
cxd5 {[%clk 0:02:53.3]} 16. Bxd5 {[%clk 0:02:40.7]} 16... Bxd5 {[%clk
0:02:53.1]} 17. exd5 {[%clk 0:02:41.6]} 17... b4 {[%clk 0:02:53.5]} 18. Rac1
{[%clk 0:02:32.2]} 18... Ra6 {[%clk 0:02:51.1]} 19. b3 {[%clk 0:02:02]} 19...
Rd6 {[%clk 0:02:47.2]} 20. Rc5 {[%clk 0:01:49.2]} 20... Nd7 {[%clk 0:02:37.2]}
21. Rxa5 {[%clk 0:01:48.5]} 21... Rc8 {[%clk 0:02:31.5]} 22. Be7 {[%clk
0:01:44.6]} 22... Rb6 {[%clk 0:02:19.4]} 23. Ra7 {[%clk 0:01:43.7]} 23... Nb8
{[%clk 0:02:14]} 24. d6 {[%clk 0:01:39.6]} 24... Nc6 {[%clk 0:02:09.1]} 25. Rc1
{[%clk 0:01:29.6]} 25... Nxa7 {[%clk 0:02:08]} 26. Rxc8+ {[%clk 0:01:29.6]}
26... Nxc8 {[%clk 0:02:07.4]} 27. d7 {[%clk 0:01:30.5]} 1-0

[Event "Late-Titled-Tuesday-Blitz-March-26-2024"]
[Site "Chess.com"]
[Date "2024.03.26"]
[Round "2"]
[White "kinga2008"]
[Black "Janh4"]
[Result "1-0"]
[WhiteElo "2450"]
[BlackElo "2166"]
[TimeControl "180+1"]
[EndTime "14:16:10 PDT"]
[Termination "kinga2008 won by resignation"]

1. e4 {[%clk 0:02:56.6]} 1... c6 {[%clk 0:02:59.7]} 2. c4 {[%clk 0:02:46.4]}
2... d5 {[%clk 0:02:59.5]} 3. exd5 {[%clk 0:02:45.8]} 3... Nf6 {[%clk
0:02:54.4]} 4. d4 {[%clk 0:02:45.2]} 4... cxd5 {[%clk 0:02:51.8]} 5. Nc3 {[%clk
0:02:44]} 5... Nc6 {[%clk 0:02:51.3]} 6. Be3 {[%clk 0:02:42.7]} 6... a6 {[%clk
0:02:51]} 7. cxd5 {[%clk 0:02:26]} 7... Nxd5 {[%clk 0:02:48.3]} 8. Bc4 {[%clk
0:02:26.9]} 8... Be6 {[%clk 0:02:36]} 9. Nxd5 {[%clk 0:01:57.6]} 9... Bxd5
{[%clk 0:02:35]} 10. Bxd5 {[%clk 0:01:54.6]} 10... Qxd5 {[%clk 0:02:34.5]} 11.
Qf3 {[%clk 0:01:55.2]} 11... Rd8 {[%clk 0:02:27.3]} 12. Qxd5 {[%clk 0:01:45.7]}
12... Rxd5 {[%clk 0:02:26.4]} 13. Ne2 {[%clk 0:01:46.6]} 13... e6 {[%clk
0:02:14.5]} 14. O-O-O {[%clk 0:01:43.6]} 14... Be7 {[%clk 0:02:06.7]} 15. Nc3
{[%clk 0:01:41.9]} 15... Rd7 {[%clk 0:01:53]} 16. d5 {[%clk 0:01:41.1]} 16...
exd5 {[%clk 0:01:52.3]} 17. Nxd5 {[%clk 0:01:39.6]} 17... Nb4 {[%clk 0:01:13.9]}
18. Nxe7 {[%clk 0:01:28]} 18... Rxe7 {[%clk 0:01:04.4]} 19. Bc5 {[%clk
0:01:23.8]} 19... Rc7 {[%clk 0:01:03.5]} 20. Rhe1+ {[%clk 0:01:23]} 1-0

[Event "Late-Titled-Tuesday-Blitz-March-26-2024"]
[Site "Chess.com"]
[Date "2024.03.26"]
[Round "2"]
[White "Azerichess"]
[Black "stolencandy13"]
[Result "1-0"]
[WhiteElo "3040"]
[BlackElo "2655"]
[TimeControl "180+1"]
[EndTime "14:16:25 PDT"]
[Termination "Azerichess won by checkmate"]

1. d4 {[%clk 0:03:00.9]} 1... Nf6 {[%clk 0:02:58.9]} 2. Bg5 {[%clk 0:02:58.2]}
2... Ne4 {[%clk 0:02:57.5]} 3. Bf4 {[%clk 0:02:58.1]} 3... d5 {[%clk 0:02:58.1]}
4. e3 {[%clk 0:02:56.6]} 4... c5 {[%clk 0:02:56]} 5. Nd2 {[%clk 0:02:56.6]} 5...
Bf5 {[%clk 0:02:45.9]} 6. Bd3 {[%clk 0:02:49.2]} 6... cxd4 {[%clk 0:02:42.1]} 7.
exd4 {[%clk 0:02:49.1]} 7... Nc6 {[%clk 0:02:41.7]} 8. Ngf3 {[%clk 0:02:47.3]}
8... e6 {[%clk 0:02:39.7]} 9. O-O {[%clk 0:02:45.5]} 9... Nxd2 {[%clk
0:02:34.9]} 10. Qxd2 {[%clk 0:02:43]} 10... Bxd3 {[%clk 0:02:27.4]} 11. Qxd3
{[%clk 0:02:43.9]} 11... Bd6 {[%clk 0:02:27.9]} 12. Bd2 {[%clk 0:02:42.4]} 12...
O-O {[%clk 0:02:27.1]} 13. c3 {[%clk 0:02:41.8]} 13... Rb8 {[%clk 0:02:26.1]}
14. Ng5 {[%clk 0:02:36.1]} 14... g6 {[%clk 0:02:16.7]} 15. Rae1 {[%clk 0:02:33]}
15... Be7 {[%clk 0:02:09.8]} 16. Qg3 {[%clk 0:02:31.4]} 16... Bf6 {[%clk
0:02:02.8]} 17. h4 {[%clk 0:02:30.7]} 17... Ne7 {[%clk 0:01:56.5]} 18. h5 {[%clk
0:02:16]} 18... Nf5 {[%clk 0:01:56.7]} 19. Qg4 {[%clk 0:02:16.2]} 19... Nh6
{[%clk 0:01:52.1]} 20. Qf4 {[%clk 0:02:14.5]} 20... Bxg5 {[%clk 0:01:45]} 21.
Qxg5 {[%clk 0:02:15.4]} 21... Qxg5 {[%clk 0:01:45.7]} 22. Bxg5 {[%clk
0:02:15.6]} 22... Nf5 {[%clk 0:01:46]} 23. g4 {[%clk 0:02:15.8]} 23... Ng7
{[%clk 0:01:39.2]} 24. h6 {[%clk 0:02:14.7]} 24... Ne8 {[%clk 0:01:30.8]} 25.
Be7 {[%clk 0:02:14.3]} 25... b5 {[%clk 0:01:31.1]} 26. f4 {[%clk 0:02:14]} 26...
Nc7 {[%clk 0:01:24]} 27. Bxf8 {[%clk 0:02:13.5]} 27... Kxf8 {[%clk 0:01:24.1]}
28. f5 {[%clk 0:02:14.4]} 28... Ke7 {[%clk 0:01:17.4]} 29. fxg6 {[%clk
0:02:11.6]} 29... hxg6 {[%clk 0:01:05.7]} 30. g5 {[%clk 0:02:11.5]} 30... Rh8
{[%clk 0:01:05.8]} 31. Kg2 {[%clk 0:02:09.6]} 31... Ne8 {[%clk 0:01:06.1]} 32.
a4 {[%clk 0:02:05.3]} 32... bxa4 {[%clk 0:00:54.6]} 33. Ra1 {[%clk 0:02:04.7]}
33... Nd6 {[%clk 0:00:53.9]} 34. Rxa4 {[%clk 0:02:04.1]} 34... Ne4 {[%clk
0:00:44]} 35. Rxa7+ {[%clk 0:02:03.1]} 35... Kd6 {[%clk 0:00:44.3]} 36. Rfxf7
{[%clk 0:02:03.4]} 36... Nxg5 {[%clk 0:00:43.8]} 37. Ra6# {[%clk 0:02:02.8]} 1-0

[Event "Late-Titled-Tuesday-Blitz-March-26-2024"]
[Site "Chess.com"]
[Date "2024.03.26"]
[Round "2"]
[White "BilicVladimir"]
[Black "Hirna2005"]
[Result "1-0"]
[WhiteElo "2641"]
[BlackElo "2298"]
[TimeControl "180+1"]
[EndTime "14:16:25 PDT"]
[Termination "BilicVladimir won by resignation"]

1. Nf3 {[%clk 0:03:00.9]} 1... g6 {[%clk 0:03:00.3]} 2. c4 {[%clk 0:03:01.8]}
2... Bg7 {[%clk 0:03:00.5]} 3. d4 {[%clk 0:03:02.7]} 3... d6 {[%clk 0:03:00.8]}
4. Nc3 {[%clk 0:03:03.6]} 4... Bg4 {[%clk 0:02:57.4]} 5. e3 {[%clk 0:03:00.8]}
5... Nc6 {[%clk 0:02:56.5]} 6. Be2 {[%clk 0:03:01]} 6... e5 {[%clk 0:02:55.8]}
7. Nxe5 {[%clk 0:02:54.5]} 7... dxe5 {[%clk 0:02:46.8]} 8. Bxg4 {[%clk
0:02:54.2]} 8... exd4 {[%clk 0:02:47]} 9. exd4 {[%clk 0:02:54.3]} 9... Qxd4
{[%clk 0:02:43.1]} 10. O-O {[%clk 0:02:50.6]} 10... Nge7 {[%clk 0:02:39.3]} 11.
Be3 {[%clk 0:02:45.7]} 11... Qxd1 {[%clk 0:02:27.1]} 12. Raxd1 {[%clk
0:02:44.5]} 12... f5 {[%clk 0:02:26.8]} 13. Bf3 {[%clk 0:02:43.8]} 13... O-O
{[%clk 0:02:19.6]} 14. Nd5 {[%clk 0:02:43.5]} 14... Nxd5 {[%clk 0:02:16.6]} 15.
Bxd5+ {[%clk 0:02:37.1]} 15... Kh8 {[%clk 0:02:16.2]} 16. Bxc6 {[%clk
0:02:37.2]} 16... bxc6 {[%clk 0:02:16]} 17. b3 {[%clk 0:02:37.2]} 17... Rf7
{[%clk 0:02:14.9]} 18. g3 {[%clk 0:02:34.4]} 18... a5 {[%clk 0:02:14.2]} 19. Rd3
{[%clk 0:02:31.4]} 19... a4 {[%clk 0:02:14]} 20. Rfd1 {[%clk 0:02:31.5]} 20...
axb3 {[%clk 0:02:08.9]} 21. axb3 {[%clk 0:02:31.6]} 21... h6 {[%clk 0:01:51.5]}
22. Rd7 {[%clk 0:02:25.4]} 22... Ra1 {[%clk 0:01:30]} 23. Rxf7 {[%clk
0:02:16.5]} 23... Rxd1+ {[%clk 0:01:29.7]} 24. Kg2 {[%clk 0:02:17.1]} 24... Be5
{[%clk 0:01:12.5]} 25. f4 {[%clk 0:02:15.4]} 25... Bd6 {[%clk 0:01:10.6]} 26. c5
{[%clk 0:02:12.7]} 26... Kg8 {[%clk 0:01:02.2]} 27. Rd7 {[%clk 0:02:11.7]} 27...
Rd3 {[%clk 0:00:58.7]} 28. cxd6 {[%clk 0:02:08.8]} 28... cxd6 {[%clk 0:00:59]}
29. Kf2 {[%clk 0:02:06.8]} 29... Rxb3 {[%clk 0:00:56.5]} 30. Rxd6 {[%clk
0:02:05.1]} 30... Rb2+ {[%clk 0:00:56.2]} 31. Kf3 {[%clk 0:02:05.3]} 31... Rxh2
{[%clk 0:00:55.4]} 32. Rxg6+ {[%clk 0:02:04]} 32... Kh7 {[%clk 0:00:54.5]} 33.
Rxc6 {[%clk 0:02:04.4]} 33... h5 {[%clk 0:00:54]} 34. Rf6 {[%clk 0:02:00.7]}
34... h4 {[%clk 0:00:53.4]} 35. gxh4 {[%clk 0:01:58.1]} 35... Rxh4 {[%clk
0:00:53]} 36. Rxf5 {[%clk 0:01:57.5]} 36... Rh3+ {[%clk 0:00:53.3]} 37. Ke4
{[%clk 0:01:56.9]} 1-0

[Event "Late-Titled-Tuesday-Blitz-March-26-2024"]
[Site "Chess.com"]
[Date "2024.03.26"]
[Round "2"]
[White "stasOR4ik"]
[Black "MikeSailer"]
[Result "1-0"]
[WhiteElo "2440"]
[BlackElo "2089"]
[TimeControl "180+1"]
[EndTime "14:16:26 PDT"]
[Termination "stasOR4ik won on time"]

1. e4 {[%clk 0:03:00.9]} 1... d5 {[%clk 0:02:59.3]} 2. exd5 {[%clk 0:03:00.8]}
2... Qxd5 {[%clk 0:02:59.3]} 3. Nf3 {[%clk 0:03:01.5]} 3... Bg4 {[%clk
0:02:58.8]} 4. Be2 {[%clk 0:03:01.9]} 4... Nc6 {[%clk 0:02:59.2]} 5. h3 {[%clk
0:03:02.2]} 5... Bh5 {[%clk 0:02:58.6]} 6. Nc3 {[%clk 0:03:02]} 6... Qd7 {[%clk
0:02:58.2]} 7. d3 {[%clk 0:03:01.9]} 7... O-O-O {[%clk 0:02:58.5]} 8. a3 {[%clk
0:03:02.2]} 8... e5 {[%clk 0:02:58.6]} 9. b4 {[%clk 0:03:02.2]} 9... Bd6 {[%clk
0:02:39.4]} 10. b5 {[%clk 0:02:59]} 10... Bxf3 {[%clk 0:02:37.1]} 11. Bxf3
{[%clk 0:02:57.3]} 11... Nd4 {[%clk 0:02:37.4]} 12. a4 {[%clk 0:02:48]} 12... f5
{[%clk 0:02:24.2]} 13. Be3 {[%clk 0:02:47]} 13... Bb4 {[%clk 0:02:10.4]} 14. Bd2
{[%clk 0:02:47.2]} 14... Nf6 {[%clk 0:02:00.8]} 15. O-O {[%clk 0:02:45.4]} 15...
Rhg8 {[%clk 0:01:48.3]} 16. a5 {[%clk 0:02:39.3]} 16... g5 {[%clk 0:01:31]} 17.
b6 {[%clk 0:02:39.4]} 17... a6 {[%clk 0:01:19.4]} 18. bxc7 {[%clk 0:02:39.4]}
18... Qxc7 {[%clk 0:01:16.8]} 19. Rb1 {[%clk 0:02:38.5]} 19... Nxf3+ {[%clk
0:01:06.4]} 20. Qxf3 {[%clk 0:02:33.9]} 20... Bxc3 {[%clk 0:00:58.4]} 21. Bxc3
{[%clk 0:02:33.3]} 21... Nd7 {[%clk 0:00:20.2]} 22. Rb4 {[%clk 0:02:27]} 22...
e4 {[%clk 0:00:14.2]} 23. Qxf5 {[%clk 0:02:24.1]} 23... Qxc3 {[%clk 0:00:12.7]}
24. Rc4+ {[%clk 0:02:22.9]} 24... Qxc4 {[%clk 0:00:12.2]} 25. dxc4 {[%clk
0:02:23.8]} 25... Kb8 {[%clk 0:00:05.8]} 26. Rd1 {[%clk 0:02:21.2]} 1-0

[Event "Late-Titled-Tuesday-Blitz-March-26-2024"]
[Site "Chess.com"]
[Date "2024.03.26"]
[Round "2"]
[White "BlueWizzard"]
[Black "SahibSinghKnight"]
[Result "1-0"]
[WhiteElo "2880"]
[BlackElo "2590"]
[TimeControl "180+1"]
[EndTime "14:16:27 PDT"]
[Termination "BlueWizzard won by resignation"]

1. d4 {[%clk 0:03:00.9]} 1... d5 {[%clk 0:02:49.3]} 2. Nc3 {[%clk 0:03:00.8]}
2... e6 {[%clk 0:02:44.4]} 3. Nf3 {[%clk 0:02:58.3]} 3... Nf6 {[%clk 0:02:41]}
4. Bg5 {[%clk 0:02:58]} 4... Be7 {[%clk 0:02:39.5]} 5. Bxf6 {[%clk 0:02:55.1]}
5... Bxf6 {[%clk 0:02:40.4]} 6. e4 {[%clk 0:02:55.7]} 6... dxe4 {[%clk
0:02:40.3]} 7. Nxe4 {[%clk 0:02:56.6]} 7... Be7 {[%clk 0:02:39]} 8. Qd3 {[%clk
0:02:56.5]} 8... Nd7 {[%clk 0:02:35.4]} 9. O-O-O {[%clk 0:02:55.8]} 9... Nf6
{[%clk 0:02:33]} 10. Kb1 {[%clk 0:02:41]} 10... O-O {[%clk 0:02:24.6]} 11. Nxf6+
{[%clk 0:02:31.9]} 11... Bxf6 {[%clk 0:02:24.5]} 12. h4 {[%clk 0:02:32.8]} 12...
h6 {[%clk 0:02:11.8]} 13. g4 {[%clk 0:02:30.4]} 13... Be7 {[%clk 0:02:02.8]} 14.
g5 {[%clk 0:02:15.3]} 14... h5 {[%clk 0:02:02.2]} 15. g6 {[%clk 0:02:15.9]}
15... Qd5 {[%clk 0:01:34.1]} 16. Rg1 {[%clk 0:01:58.7]} 16... f6 {[%clk
0:00:43.7]} 17. Qe3 {[%clk 0:01:58.3]} 17... e5 {[%clk 0:00:21.1]} 18. Be2
{[%clk 0:01:54.7]} 18... e4 {[%clk 0:00:19.8]} 19. Nd2 {[%clk 0:01:54.5]} 19...
Re8 {[%clk 0:00:12.4]} 20. Bc4 {[%clk 0:01:53.9]} 1-0

[Event "Late-Titled-Tuesday-Blitz-March-26-2024"]
[Site "Chess.com"]
[Date "2024.03.26"]
[Round "2"]
[White "ural58"]
[Black "sacrifoice"]
[Result "1-0"]
[WhiteElo "2472"]
[BlackElo "2207"]
[TimeControl "180+1"]
[EndTime "14:16:31 PDT"]
[Termination "ural58 won by resignation"]

1. e4 {[%clk 0:02:42.6]} 1... c5 {[%clk 0:02:59.5]} 2. b3 {[%clk 0:02:41.6]}
2... Nc6 {[%clk 0:02:59.2]} 3. Bb2 {[%clk 0:02:41.6]} 3... d6 {[%clk 0:02:58.6]}
4. Bb5 {[%clk 0:02:37.9]} 4... Bd7 {[%clk 0:02:58.6]} 5. Ne2 {[%clk 0:02:37]}
5... Nf6 {[%clk 0:02:57.7]} 6. d3 {[%clk 0:02:30.2]} 6... g6 {[%clk 0:02:53.7]}
7. c4 {[%clk 0:02:24.2]} 7... Bg7 {[%clk 0:02:52.1]} 8. Nbc3 {[%clk 0:02:22.4]}
8... O-O {[%clk 0:02:51.8]} 9. O-O {[%clk 0:02:15.1]} 9... a6 {[%clk 0:02:49.8]}
10. Bxc6 {[%clk 0:02:14.6]} 10... Bxc6 {[%clk 0:02:50.7]} 11. f4 {[%clk
0:02:14.6]} 11... b5 {[%clk 0:02:45.4]} 12. Qc2 {[%clk 0:02:11]} 12... Rb8
{[%clk 0:02:37.4]} 13. Ng3 {[%clk 0:02:09.8]} 13... Qd7 {[%clk 0:02:33.2]} 14.
Rae1 {[%clk 0:02:08.8]} 14... Rfe8 {[%clk 0:02:20]} 15. h3 {[%clk 0:02:07.2]}
15... bxc4 {[%clk 0:02:11.3]} 16. dxc4 {[%clk 0:02:06.5]} 16... Qb7 {[%clk
0:02:11.1]} 17. Nd5 {[%clk 0:02:02.5]} 17... Nxd5 {[%clk 0:02:01.2]} 18. exd5
{[%clk 0:02:01.9]} 18... Bd7 {[%clk 0:02:00]} 19. Bxg7 {[%clk 0:02:00.7]} 19...
Kxg7 {[%clk 0:02:00.9]} 20. f5 {[%clk 0:02:01.3]} 20... a5 {[%clk 0:01:45]} 21.
h4 {[%clk 0:01:59.5]} 21... a4 {[%clk 0:01:44.8]} 22. fxg6 {[%clk 0:01:59.3]}
22... hxg6 {[%clk 0:01:44.7]} 23. h5 {[%clk 0:01:59.2]} 23... axb3 {[%clk
0:01:44.6]} 24. Qc3+ {[%clk 0:01:59.3]} 24... f6 {[%clk 0:01:41.6]} 25. Qd3
{[%clk 0:01:54.6]} 25... gxh5 {[%clk 0:01:00.7]} 26. Nxh5+ {[%clk 0:01:52.8]}
26... Kh6 {[%clk 0:01:00.4]} 27. Nxf6 {[%clk 0:01:48.4]} 27... exf6 {[%clk
0:00:41.7]} 28. Rxf6+ {[%clk 0:01:46.5]} 1-0